bitfinex-derivatives/quotes_SOLF0:USTF0_20250626
["timestamp","ask_amount","ask_price","bid_price","bid_amount"]
[1750919764097,6.8893,145.09,145.05,6.8907]
[1750919765897,6.8896,145.08,145.05,6.8907]
[1750919766301,10.31245624,145.08,145.04,6.8913]
[1750919766500,6.8902,145.07,145.02,37.2562]
[1750919767103,6.891,145.06,145.01,37.2157]
[1750919768497,6.891,145.06,145.03,6.8918]
[1750919769106,6.8902,145.07,145.03,6.8918]
[1750919769801,6.8908,145.06,145.02,6.8923]
[1750919770109,6.8908,145.06,145.01,37.2157]
[1750919771505,6.8908,145.06,145.03,6.8918]
[1750919772307,6.8903,145.07,145.03,6.8918]
[1750919772804,3.42285624,145.08,145.03,6.8918]
[1750919775104,6.8904,145.07,145.03,6.8918]
[1750919775601,6.8904,145.07,145.01,37.2157]
[1750919776006,10.31265624,145.08,145.01,40.63855624]
[1750919776402,10.31265624,145.08,145.04,6.8912]
[1750919776812,6.8898,145.08,145.04,6.8912]
[1750919777008,10.31265624,145.08,145.04,6.8912]
[1750919777312,6.8905,145.07,145.03,6.8916]
[1750919778011,6.8905,145.07,145.04,6.8915]
[1750919780913,6.8905,145.07,145.03,6.8918]
[1750919781711,6.8905,145.07,145.01,40.63855624]
[1750919781712,3.42285624,145.08,145.02,6.8923]
[1750919781914,3.42285624,145.06,145.01,34.84]
[1750919782216,6.8913,145.05,145.01,34.84]
[1750919782918,10.31435624,145.04,145.01,34.84]
[1750919783217,10.31435624,145.04,144.98,34.84]
[1750919783805,10.31435624,145.04,145.01,6.8926]
[1750919784316,6.892,145.03,145.0,6.8933]
[1750919784509,3.42285624,145.04,144.98,34.84]
[1750919784707,3.42285624,145.04,144.98,38.26285624]
[1750919785509,6.8915,145.04,144.98,38.26285624]
[1750919786111,10.31405624,145.05,145.01,6.8928]
[1750919787121,3.42285624,145.05,145.02,6.8922]
[1750919787322,38.26285624,145.07,145.0,3.42285624]
[1750919787818,38.26285624,145.07,145.02,6.8924]
[1750919788217,6.8907,145.06,145.02,6.8924]
[1750919788410,6.8907,145.06,145.0,3.42285624]
[1750919789620,6.8907,145.06,145.03,6.8918]
[1750919790823,45.15305624,145.07,145.03,6.8918]
[1750919791326,41.7302,145.07,145.03,6.8918]
[1750919791623,45.15305624,145.07,145.03,6.8918]
[1750919792425,6.8906,145.06,145.03,6.8918]
[1750919792822,6.8906,145.06,145.02,6.8922]
[1750919795123,6.8906,145.06,145.03,6.8919]
[1750919795628,45.15325624,145.07,145.03,6.8919]
[1750919797432,6.8907,145.06,145.03,6.8919]
[1750919798119,6.8907,145.06,145.02,6.8922]
[1750919800231,3.42285624,145.05,144.98,38.26285624]
[1750919800424,3.42285624,145.05,144.98,34.84]
[1750919801033,6.8916,145.04,145.0,6.8931]
[1750919801632,3.42285624,145.03,144.98,34.8]
[1750919802830,3.42285624,145.01,144.98,34.8]
[1750919803136,10.31605624,145.01,144.95,34.8]
[1750919804926,10.31605624,145.01,144.98,6.8943]
[1750919805132,3.42285624,145.01,144.98,6.8943]
[1750919806135,34.8,145.03,144.95,34.8]
[1750919806136,38.22285624,145.03,144.95,38.22285624]
[1750919806334,38.22285624,145.03,144.95,40.47985624]
[1750919806532,3.42285624,145.05,144.97,3.42285624]
[1750919806734,3.42285624,145.05,144.99,3.42285624]
[1750919806928,3.42285624,145.05,144.99,38.22285624]
[1750919807128,10.31415624,145.05,145.01,6.8926]
[1750919810441,6.8915,145.04,145.0,6.8933]
[1750919810632,3.42285624,145.03,144.99,34.8]
[1750919810826,3.42285624,145.01,144.95,2.257]
[1750919811136,3.42285624,144.99,144.95,34.8]
[1750919811329,3.42285624,144.97,144.91,34.8]
[1750919813240,3.42285624,144.97,144.94,6.896]
[1750919813537,45.11675624,144.99,144.91,38.22285624]
[1750919814334,45.11675624,144.99,144.95,6.8957]
[1750919815241,45.11675624,144.99,144.91,38.22285624]
[1750919815441,3.42285624,145.01,144.93,3.42285624]
[1750919816543,10.31605624,145.01,144.97,6.8945]
[1750919817644,6.8935,145.0,144.96,6.8949]
[1750919818042,3.42285624,144.99,144.92,2.3463]
[1750919818249,10.31705624,144.99,144.94,6.8962]
[1750919818647,3.42285624,144.99,144.92,2.3463]
[1750919819652,10.31675624,144.99,144.95,6.8953]
[1750919821848,3.42285624,144.99,144.94,6.8961]
[1750919822049,3.42285624,144.97,144.91,34.8]
[1750919822449,4.7381,145.0,144.91,34.8]
[1750919822647,3.42285624,144.98,144.91,38.22285624]
[1750919822850,10.31745624,144.98,144.91,38.22285624]
[1750919823048,3.42285624,144.98,144.91,38.22285624]
[1750919824561,3.42285624,144.98,144.95,6.8955]
[1750919825857,10.31725624,144.98,144.95,6.8955]
[1750919826259,3.42285624,144.98,144.91,34.8]
[1750919826454,3.42285624,144.96,144.91,34.8]
[1750919826856,10.31845624,144.96,144.92,6.8969]
[1750919829059,6.8958,144.95,144.92,6.8969]
[1750919829355,6.8958,144.95,144.91,41.6975]
[1750919830260,6.8958,144.95,144.92,6.8971]
[1750919830863,6.8958,144.95,144.91,41.6975]
[1750919832770,6.8958,144.95,144.92,6.8971]
[1750919833365,6.8963,144.94,144.91,34.8]
[1750919833555,6.8963,144.94,144.91,41.6974]
[1750919834765,6.8961,144.95,144.91,41.6974]
[1750919835270,6.8961,144.95,144.92,6.8972]
[1750919835458,6.8961,144.95,144.91,34.8]
[1750919835658,6.8963,144.94,144.89,595.38]
[1750919835958,6.8963,144.94,144.89,630.14]
[1750919836764,6.8963,144.94,144.91,6.8975]
[1750919836962,6.8959,144.95,144.91,6.8975]
[1750919837164,6.8959,144.95,144.92,6.8972]
[1750919838568,3.42285624,144.96,144.91,6.8975]
[1750919838868,6.8961,144.95,144.91,6.8975]
[1750919839471,6.8961,144.95,144.92,6.8971]
[1750919840158,10.31855624,144.96,144.92,6.8971]
[1750919840967,6.8958,144.95,144.92,6.8971]
[1750919844162,6.8964,144.94,144.91,6.8976]
[1750919844371,6.8964,144.94,144.88,34.76]
[1750919844372,3.42285624,144.94,144.88,34.76]
[1750919845662,6.8969,144.93,144.9,6.8981]
[1750919847567,3.42616415,144.95,144.88,34.76]
[1750919847967,10.32226415,144.95,144.91,6.8973]
[1750919848167,10.32226415,144.95,144.88,34.76]
[1750919849665,10.32226415,144.95,144.91,6.8973]
[1750919853368,10.32226415,144.95,144.92,6.8971]
[1750919854771,6.8964,144.94,144.88,34.76]
[1750919855873,6.8964,144.94,144.9,6.8979]
[1750919856371,3.42616415,144.93,144.89,6.8984]
[1750919857076,3.42616415,144.91,144.88,41.659]
[1750919857874,3.42771773,144.91,144.88,41.659]
[1750919858073,3.42771773,144.91,144.89,6.8986]
[1750919859374,3.42771773,144.91,144.88,41.6589]
[1750919864582,10.32551773,144.91,144.88,41.6589]
[1750919865178,10.32551773,144.91,144.88,6.8989]
[1750919865783,6.8982,144.9,144.85,34.72]
[1750919866480,6.8982,144.9,144.86,6.9]
[1750919867987,6.8991,144.88,144.85,41.6204]
[1750919868178,3.42771773,144.89,144.85,34.72]
[1750919868490,10.32611773,144.9,144.86,6.8998]
[1750919868784,10.32611773,144.9,144.85,34.72]
[1750919869181,10.32611773,144.9,144.86,6.8999]
[1750919871588,10.32611773,144.9,144.87,6.8995]
[1750919875993,3.42771773,144.88,144.85,34.72]
[1750919876192,3.42771773,144.88,144.83,2.2622]
[1750919876485,34.5,144.9,144.83,2.2622]
[1750919876699,3.42771773,144.89,144.83,2.2622]
[1750919877487,34.5,144.9,144.83,2.2622]
[1750919877791,37.92771773,144.93,144.86,3.42771773]
[1750919877980,37.92771773,144.93,144.86,37.92771773]
[1750919878589,34.5,144.93,144.9,6.8979]
[1750919878796,3.42771773,144.97,144.9,34.5]
[1750919878986,3.42771773,144.95,144.9,34.5]
[1750919879289,6.8966,144.94,144.9,41.3978]
[1750919880180,3.42771773,144.93,144.89,133.56]
[1750919880384,3.42771773,144.91,144.89,133.56]
[1750919880595,3.42771773,144.91,144.87,34.5]
[1750919881582,10.32541773,144.91,144.88,6.899]
[1750919882793,3.42771773,144.91,144.89,6.8985]
[1750919883998,3.42771773,144.91,144.88,6.8989]
[1750919885195,10.32551773,144.91,144.87,41.3994]
[1750919887201,10.32551773,144.91,144.88,6.899]
[1750919888495,3.42771773,144.91,144.87,34.5]
[1750919888692,3.42771773,144.89,144.83,2.2622]
[1750919889295,6.8994,144.88,144.84,6.9007]
[1750919889498,6.8994,144.88,144.83,2.2622]
[1750919889998,10.32641773,144.89,144.85,6.9002]
[1750919890299,3.42771773,144.89,144.85,6.9002]
[1750919891597,3.42771773,144.89,144.86,6.8999]
[1750919891801,10.32651773,144.89,144.86,6.8999]
[1750919892300,3.42771773,144.89,144.85,6.9004]
[1750919893195,3.42771773,144.87,144.83,6.901]
[1750919894695,6.9003,144.86,144.82,6.9018]
[1750919895096,3.42771773,144.85,144.81,6.9023]
[1750919895299,3.42771773,144.85,144.77,6.844]
[1750919895300,34.52,144.87,144.77,6.844]
[1750919895506,37.94771773,144.87,144.79,3.42771773]
[1750919895804,37.94771773,144.87,144.84,6.901]
[1750919896505,34.52,144.87,144.81,37.94771773]
[1750919896704,37.94771773,144.87,144.81,34.52]
[1750919897207,37.94771773,144.87,144.84,6.9007]
[1750919899402,37.94771773,144.87,144.85,6.9005]
[1750919900205,37.94771773,144.87,144.81,34.52]
[1750919900409,3.42771773,144.87,144.81,34.52]
[1750919901204,3.42771773,144.89,144.81,37.94771773]
[1750919901414,37.94822263,144.9,144.82,3.42822263]
[1750919901599,37.94822263,144.9,144.82,10.29882263]
[1750919902104,37.94822263,144.9,144.88,6.8986]
[1750919903121,3.42822263,144.92,144.85,34.52]
[1750919903734,3.42822263,144.92,144.89,6.8982]
[1750919904630,34.52,144.93,144.86,3.42822263]
[1750919905125,34.52,144.93,144.87,2.3547]
[1750919906332,34.52,144.93,144.9,6.8978]
[1750919906627,34.52,144.93,144.87,2.3547]
[1750919906829,34.52,144.93,144.91,6.8974]
[1750919907017,34.52,144.93,144.87,2.3547]
[1750919907018,10.32452263,144.94,144.87,2.3547]
[1750919907722,10.32452263,144.94,144.9,6.8979]
[1750919908528,10.32452263,144.94,144.87,2.3547]
[1750919908731,3.42657966,144.93,144.87,2.3547]
[1750919908926,3.42657966,144.93,144.89,6.8983]
[1750919909330,3.42657966,144.93,144.87,2.3547]
[1750919910229,3.42657966,144.93,144.89,6.8983]
[1750919910425,10.32327966,144.93,144.89,6.8983]
[1750919911834,3.42657966,144.93,144.9,6.8981]
[1750919912334,10.32327966,144.93,144.89,6.8985]
[1750919913230,3.42657966,144.93,144.9,6.8981]
[1750919914336,3.42657966,144.93,144.87,5.78127966]
[1750919914337,3.42657966,144.95,144.87,5.78127966]
[1750919915229,6.8964,144.94,144.9,6.8978]
[1750919922241,6.8964,144.94,144.91,6.8976]
[1750919922535,47.17117966,144.96,144.87,5.78127966]
[1750919922732,40.27547966,144.96,144.89,37.98657966]
[1750919923235,38.00657966,144.96,144.89,37.98657966]
[1750919923933,38.00657966,144.96,144.93,6.8963]
[1750919925839,44.90197966,144.96,144.93,6.8963]
[1750919926137,38.00657966,144.96,144.89,34.56]
[1750919926338,3.42657966,144.94,144.89,34.56]
[1750919926528,10.32317966,144.94,144.89,34.56]
[1750919926733,3.42657966,144.94,144.9,6.8978]
[1750919927540,6.897,144.93,144.89,41.4584]
[1750919930242,10.32297966,144.94,144.9,6.8981]
[1750919931137,34.58,144.96,144.89,34.56]
[1750919931340,38.00657966,144.96,144.89,34.56]
[1750919932038,38.00657966,144.96,144.93,6.8964]
[1750919932238,38.00657966,144.96,144.89,34.56]
[1750919933348,38.00657966,144.96,144.93,6.8967]
[1750919933943,44.90187966,144.96,144.92,6.8969]
[1750919935147,6.8958,144.95,144.91,6.8975]
[1750919935344,3.42657966,144.94,144.89,34.56]
[1750919936347,10.32287966,144.94,144.9,6.8978]
[1750919938741,10.32287966,144.94,144.91,6.8976]
[1750919939646,6.8959,144.95,144.91,6.8976]
[1750919940350,6.8959,144.95,144.92,6.8971]
[1750919940751,44.90207966,144.96,144.89,34.56]
[1750919941051,3.42657966,144.98,144.9,3.42657966]
[1750919941752,3.42657966,144.98,144.95,6.8955]
[1750919941948,3.42657966,144.98,144.9,3.42657966]
[1750919942147,10.32097966,144.98,144.94,6.896]
[1750919944748,3.42657966,144.96,144.89,36.8806]
[1750919944940,3.42657966,144.96,144.89,34.56]
[1750919945252,6.8961,144.95,144.91,6.8974]
[1750919948258,6.8963,144.94,144.91,6.8974]
[1750919948758,6.896,144.95,144.91,6.8974]
[1750919949355,6.896,144.95,144.92,6.8971]
[1750919949556,10.32207966,144.96,144.89,34.56]
[1750919950049,10.32207966,144.96,144.92,6.8969]
[1750919953260,6.8958,144.95,144.92,6.8969]
[1750919953556,3.42657966,144.96,144.92,6.8969]
[1750919953954,10.32217966,144.96,144.92,6.8969]
[1750919954256,3.42657966,144.96,144.93,6.8967]
[1750919954455,10.32207966,144.96,144.93,6.8967]
[1750919960162,3.42657966,144.96,144.89,34.56]
[1750919960967,3.42657966,144.96,144.93,6.8964]
[1750919962165,6.8952,144.97,144.93,6.8964]
[1750919963066,6.8954,144.96,144.93,6.8964]
[1750919963360,3.42657966,144.97,144.92,6.8971]
[1750919964159,6.8959,144.95,144.92,6.8971]
[1750919964459,3.42657966,144.97,144.93,6.8967]
[1750919964960,3.42657966,144.97,144.89,34.56]
[1750919965363,10.32167966,144.97,144.93,6.8964]
[1750919965765,6.8951,144.97,144.93,6.8964]
[1750919967762,6.8954,144.96,144.93,6.8964]
[1750919970175,6.8961,144.95,144.91,6.8974]
[1750919971065,6.8961,144.95,144.89,37.98481972]
[1750919971066,6.8961,144.95,144.92,6.8971]
[1750919975477,10.32031972,144.96,144.92,6.8971]
[1750919976776,6.8958,144.95,144.92,6.8971]
[1750919979581,10.32088129,144.96,144.92,6.8971]
[1750919982286,2.19217997,144.95,144.92,6.8971]
[1750919984186,9.08797997,144.95,144.92,6.8971]
[1750919984788,2.19217997,144.95,144.92,6.8971]
[1750919985489,9.08797997,144.95,144.92,6.8971]
[1750919986490,9.08800289,144.95,144.92,6.8971]
[1750919986880,2.19220289,144.95,144.9,2.19220289]
[1750919987178,2.19220289,144.96,144.92,2.19220289]
[1750919987791,2.19220289,144.96,144.94,6.8962]
[1750919988892,2.19181666,144.96,144.94,6.8962]
[1750919990216,2.19181666,144.97,144.95,6.8958]
[1750919990395,6.8941,144.99,144.95,6.8958]
[1750919990697,2.19181666,144.96,144.93,34.42]
[1750919991003,2.19181666,144.94,144.9,34.42]
[1750919991192,2.19181666,144.93,144.9,34.42]
[1750919991502,2.19181666,144.93,144.92,6.8972]
[1750919991696,34.42,145.0,144.92,2.19181666]
[1750919991897,2.19181666,144.98,144.95,6.8955]
[1750919993200,2.19181666,144.98,144.96,6.8952]
[1750919994899,2.19181666,145.02,144.97,2.19181666]
[1750919995507,9.08421666,145.02,144.99,6.8939]
[1750919995695,2.19181666,145.0,144.96,34.42]
[1750919995902,2.19181666,144.99,144.96,34.42]
[1750919996407,2.19181666,144.99,144.97,6.8947]
[1750919998011,2.19181666,145.0,144.97,6.8947]
[1750919999912,2.19181666,145.01,144.98,6.8942]
[1750920000615,9.08481666,145.01,144.98,6.8942]
[1750920000810,2.19181666,144.99,144.97,6.8946]
[1750920004519,2.19181666,145.0,144.98,6.8942]
[1750920005209,2.19181666,145.03,144.99,2.19181666]
[1750920005709,2.19181666,145.03,145.0,6.8931]
[1750920008422,12.60826543,145.04,145.0,6.8931]
[1750920011619,10.31346543,145.04,145.0,6.8931]
[1750920012114,6.8921,145.03,145.0,6.8931]
[1750920012617,6.8934,145.0,144.96,37.84166543]
[1750920012815,3.42166543,145.0,144.93,34.38]
[1750920013023,3.42166543,144.98,144.93,34.38]
[1750920013222,10.31726543,144.96,144.93,34.38]
[1750920013514,10.31726543,144.96,144.92,6.8968]
[1750920013912,10.31726543,144.96,144.93,6.8967]
[1750920015116,3.42166543,144.96,144.94,6.8961]
[1750920015316,3.42166543,144.98,144.9,40.21916543]
[1750920016523,6.8948,144.97,144.9,40.21916543]
[1750920017112,6.8948,144.97,144.93,6.8964]
[1750920019310,6.8948,144.97,144.94,6.8962]
[1750920019617,10.31616543,144.98,144.94,6.8962]
[1750920020722,6.895,144.97,144.93,6.8966]
[1750920022019,6.8955,144.96,144.92,6.8971]
[1750920022320,10.31716543,144.96,144.92,6.8971]
[1750920025933,10.31716543,144.96,144.93,6.8966]
[1750920029333,6.8961,144.95,144.91,6.8973]
[1750920029535,3.42166543,144.94,144.89,34.36]
[1750920030129,3.42166543,144.9,144.85,629.9]
[1750920030341,3.42166543,144.9,144.85,34.36]
[1750920030537,10.32026543,144.9,144.86,6.9]
[1750920030833,10.32026543,144.9,144.85,34.36]
[1750920031042,2.2993,144.93,144.85,34.36]
[1750920031043,3.42166543,144.92,144.85,34.36]
[1750920031242,2.2993,144.93,144.85,34.36]
[1750920031541,10.31896543,144.92,144.87,6.8995]
[1750920031735,10.31896543,144.92,144.85,34.36]
[1750920033539,10.31896543,144.92,144.88,6.8988]
[1750920033733,34.36,144.94,144.85,34.36]
[1750920033929,37.78166543,144.94,144.86,5.84736543]
[1750920034641,44.67826543,144.94,144.9,6.8981]
[1750920035232,37.78166543,144.94,144.91,6.8976]
[1750920036033,2.4282,145.0,144.92,6.8972]
[1750920036034,10.31716543,144.96,144.92,6.8972]
[1750920036434,36.7641,144.97,144.9,3.42166543]
[1750920036638,34.38,144.97,144.9,3.42166543]
[1750920037140,34.38,144.97,144.94,6.8962]
[1750920038345,41.2749,144.97,144.93,6.8965]
[1750920039142,34.38,144.97,144.93,6.8965]
[1750920039337,3.42166543,144.98,144.9,3.42166543]
[1750920039542,118.61905341,144.99,144.92,3.42166543]
[1750920040144,118.61905341,144.99,144.93,34.38]
[1750920040646,118.61905341,144.99,144.96,6.8953]
[1750920041546,118.61905341,144.99,144.95,6.8956]
[1750920042551,125.51295341,144.99,144.95,6.8956]
[1750920043745,10.31626543,144.98,144.93,41.2763]
[1750920044048,3.42166543,144.98,144.93,41.2763]
[1750920044248,3.42166543,144.96,144.93,41.2763]
[1750920046351,10.31716543,144.96,144.93,34.38]
[1750920047551,10.31716543,144.96,144.93,41.2766]
[1750920048451,10.31716543,144.96,144.93,6.8966]
[1750920048650,3.42166543,144.96,144.94,6.8962]
[1750920049350,14.83126543,144.98,144.94,6.8962]
[1750920051551,6.8948,144.97,144.94,6.8962]
[1750920052156,14.83116543,144.98,144.94,6.8962]
[1750920054751,11.4095,144.98,144.94,6.8962]
[1750920055654,11.4095,144.98,144.95,6.8957]
[1750920060769,6.8949,144.97,144.94,6.896]
[1750920060961,4.515,144.98,144.9,37.80449311]
[1750920061668,6.8951,144.97,144.93,6.8963]
[1750920062371,6.8951,144.97,144.94,6.8962]
[1750920065673,122.04354652,144.99,144.9,37.80449311]
[1750920066373,128.93764652,144.99,144.95,6.8955]
[1750920069073,6.8944,144.98,144.95,6.8955]
[1750920069374,122.04354652,144.99,144.95,6.8955]
[1750920069673,128.93754652,144.99,144.95,6.8955]
[1750920070368,122.04354652,144.99,144.96,6.8953]
[1750920070574,3.42449311,144.99,144.94,34.36]
[1750920071276,10.31859311,144.99,144.95,6.8956]
[1750920072679,6.8945,144.98,144.95,6.8956]
[1750920076377,3.42449311,144.99,144.94,41.2561]
[1750920076582,3.42449311,144.97,144.91,34.36]
[1750920077483,6.8956,144.96,144.93,6.8966]
[1750920078284,10.3209256,144.96,144.93,6.8966]
[1750920080679,6.8958,144.95,144.91,34.36]
[1750920081788,6.8965,144.94,144.91,34.36]
[1750920081985,3.4253256,144.94,144.9,6.8981]
[1750920083578,6.8971,144.93,144.9,6.8981]
[1750920083993,6.8971,144.93,144.89,6.8984]
[1750920084491,6.8971,144.93,144.88,34.36]
[1750920085088,10.3224256,144.93,144.88,34.36]
[1750920085786,10.3224256,144.93,144.9,6.898]
[1750920086390,10.3224256,144.93,144.88,34.36]
[1750920086391,6.8973,144.92,144.89,6.8984]
[1750920086583,3.4253256,144.93,144.88,34.36]
[1750920087081,10.3223256,144.93,144.9,6.8981]
[1750920092194,10.3223256,144.93,144.89,6.8984]
[1750920092387,6.8973,144.92,144.89,6.8984]
[1750920093192,6.8977,144.91,144.88,41.259]
[1750920093494,10.3230256,144.91,144.88,34.36]
[1750920095384,10.3230256,144.91,144.88,41.259]
[1750920096092,13.05917932,144.95,144.89,6.8985]
[1750920096399,3.4253256,144.93,144.88,34.36]
[1750920096798,10.3223256,144.93,144.9,6.8979]
[1750920102303,3.4253256,144.93,144.88,34.36]
[1750920102498,7.1661,144.95,144.82,36.7157]
[1750920102499,3.4253256,144.89,144.82,36.7157]
[1750920102704,3.4253256,144.87,144.82,34.34]
[1750920102896,6.9004,144.86,144.82,41.2417]
[1750920103104,3.4253256,144.87,144.82,41.2417]
[1750920103404,3.4253256,144.85,144.82,41.2417]
[1750920105004,3.4253256,144.85,144.83,6.9015]
[1750920105204,10.3255256,144.86,144.83,6.9015]
[1750920105902,3.4253256,144.86,144.83,6.9015]
[1750920107606,10.3254256,144.86,144.83,6.9015]
[1750920108100,10.3254256,144.86,144.82,6.9018]
[1750920108314,3.4253256,144.84,144.79,172.0425]
[1750920108503,3.4253256,144.84,144.81,6.9021]
[1750920109101,3.4253256,144.84,144.82,6.9019]
[1750920111113,3.4253256,144.84,144.81,6.9021]
[1750920116116,10.3264256,144.84,144.81,6.9021]
[1750920116307,3.4253256,144.82,144.73,3.4253256]
[1750920116610,3.4253256,144.8,144.74,167.52]
[1750920117510,10.3284256,144.8,144.76,6.9045]
[1750920117915,3.4253256,144.81,144.74,34.36]
[1750920118414,3.4253256,144.81,144.77,6.904]
[1750920119310,10.3278256,144.81,144.77,6.904]
[1750920120606,3.4253256,144.79,144.75,6.9048]
[1750920120810,3.4253256,144.79,144.74,34.36]
[1750920121314,3.4253256,144.79,144.76,6.9045]
[1750920124713,3.4253256,144.79,144.78,6.9039]
[1750920125014,3.4253256,144.81,144.78,6.9039]
[1750920125723,10.3279256,144.81,144.77,6.9041]
[1750920127417,10.3279256,144.81,144.78,6.9038]
[1750920131518,3.4253256,144.82,144.74,34.36]
[1750920131716,3.4253256,144.82,144.74,37.7853256]
[1750920132117,6.9025,144.81,144.77,6.904]
[1750920132312,3.4253256,144.8,144.77,6.904]
[1750920134624,10.3284256,144.8,144.76,6.9046]
[1750920135427,10.3284256,144.8,144.77,6.9043]
[1750920139626,3.4253256,144.8,144.77,6.9043]
[1750920141918,10.3283256,144.8,144.77,6.9043]
[1750920146234,2.19699194,144.79,144.77,6.9043]
[1750920148338,6.9026,144.81,144.77,6.9043]
[1750920148537,2.19699194,144.8,144.78,6.9039]
[1750920149739,2.19699194,144.81,144.78,6.9039]
[1750920150132,2.19699194,144.81,144.79,6.9033]
[1750920150333,2.19699194,144.8,144.73,4.7175]
[1750920150540,2.1970479,144.79,144.74,36.5170479]
[1750920151424,2.1970479,144.79,144.77,6.9042]
[1750920152038,2.1970479,144.82,144.76,2.1970479]
[1750920152235,104.94823063,144.85,144.78,2.1970479]
[1750920152430,2.1970479,144.84,144.79,2.1970479]
[1750920152634,2.1970479,144.84,144.82,6.9018]
[1750920153539,2.19552636,144.84,144.82,6.9018]
[1750920155741,104.94823063,144.85,144.82,6.9018]
[1750920155940,2.19552636,144.84,144.82,6.9018]
[1750920156339,104.94823063,144.85,144.82,6.9018]
[1750920157836,111.84883063,144.85,144.81,6.9023]
[1750920158037,104.94823063,144.85,144.79,2.3666]
[1750920159544,6.9013,144.84,144.81,6.9024]
[1750920162346,104.94823063,144.85,144.81,6.9024]
[1750920162347,111.84893063,144.85,144.81,6.9024]
[1750920162647,104.94823063,144.85,144.79,2.3666]
[1750920162847,104.94823063,144.85,144.79,5.79670475]
[1750920163462,104.94823063,144.85,144.82,6.9016]
[1750920163841,10.33040475,144.86,144.82,6.9016]
[1750920165750,41.2197,144.87,144.83,6.9014]
[1750920172059,6.9001,144.86,144.83,6.9014]
[1750920172262,10.33020475,144.86,144.82,6.9018]
[1750920173358,10.33020475,144.86,144.83,6.9014]
[1750920175167,3.43010475,144.86,144.83,6.9014]
[1750920176260,2.19517776,144.85,144.83,6.9014]
[1750920182872,2.19517776,144.86,144.81,36.49517776]
[1750920183177,2.19397252,144.89,144.85,2.19397252]
[1750920183774,2.19397252,144.88,144.84,2.19397252]
[1750920184569,2.19397252,144.89,144.86,6.9]
[1750920184774,2.19397252,144.9,144.85,36.49397252]
[1750920185076,36.49397252,144.91,144.88,6.8991]
[1750920185271,2.19397252,144.91,144.88,6.8991]
[1750920185466,2.19346438,144.9,144.88,6.8991]
[1750920186975,2.19346438,144.89,144.87,6.8994]
[1750920187274,2.19346438,144.89,144.85,36.49346438]
[1750920187476,2.19346438,144.88,144.86,6.8999]
[1750920188576,2.19346438,144.89,144.86,6.8999]
[1750920190276,6.8984,144.9,144.86,6.8999]
[1750920199878,6.8984,144.9,144.87,6.8995]
[1750920203483,10.32578543,144.91,144.88,6.8991]
[1750920203684,3.42788543,144.91,144.88,6.8991]
[1750920204990,3.42788543,144.91,144.89,6.8986]
[1750920205178,8.10098543,144.93,144.85,37.72788543]
[1750920205482,34.3,144.94,144.87,3.42788543]
[1750920205687,3.42788543,144.95,144.87,3.42788543]
[1750920206183,3.42788543,144.95,144.92,6.8969]
[1750920207683,6.8955,144.96,144.92,6.8969]
[1750920212488,2.19218886,144.96,144.92,2.19218886]
[1750920213589,2.19218886,144.96,144.93,6.8964]
[1750920216296,2.19218886,144.96,144.94,6.8962]
[1750920216496,11.6943,144.98,144.93,2.19218886]
[1750920216786,2.19218886,144.96,144.94,6.8959]
[1750920220390,6.8949,144.97,144.94,6.8959]
[1750920220594,2.19218886,144.96,144.94,6.8959]
[1750920222503,2.19218886,144.96,144.92,2.19218886]
[1750920224300,2.19218886,144.96,144.94,6.8959]
[1750920224596,2.19218886,144.96,144.92,2.19218886]
[1750920224800,2.19218886,144.94,144.91,6.8973]
[1750920225799,2.19218886,144.94,144.92,6.8972]
[1750920227799,2.19218886,144.94,144.93,6.8967]
[1750920230110,2.19218886,144.95,144.93,6.8967]
[1750920231309,2.19218886,144.95,144.94,6.8962]
[1750920232909,2.19218886,144.95,144.93,6.8965]
[1750920233711,6.8954,144.96,144.9,34.28]
[1750920234012,2.19218886,144.94,144.92,6.897]
[1750920234213,6.8954,144.96,144.92,6.897]
[1750920234412,2.19218886,144.94,144.92,6.897]